bitfinex-derivatives/quotes_ETHF0:USTF0_20210705
["timestamp","ask_amount","ask_price","bid_price","bid_amount"]
[1625467171369,2.20527,2281.7,2281.6,2.20527]
[1625467172469,3.20527,2281.7,2281.6,2.20527]
[1625467174475,2.20527,2281.7,2281.6,2.20527]
[1625467174875,3.20527,2281.7,2281.6,2.20527]
[1625467176079,2.20527,2281.7,2281.6,2.20527]
[1625467176478,3.20527,2281.7,2281.6,2.20527]
[1625467177181,5.58097,2281.7,2281.6,2.20527]
[1625467178330,5.58097,2281.7,2281.1,50.6532]
[1625467178430,5.58097,2281.7,2280.3,48.7716]
[1625467178980,2.20527,2281.3,2281.2,2.20527]
[1625467179080,3.20527,2281.3,2281.2,2.20527]
[1625467181333,2.20527,2281.3,2281.2,2.20527]
[1625467181439,1.0,2281.7,2281.2,2.20527]
[1625467181534,1.0,2281.7,2281.2,4.94647]
[1625467181635,1.66666667,2281.8,2281.2,4.94647]
[1625467181836,1.66666667,2281.8,2281.2,20.984649]
[1625467182596,1.66666667,2281.8,2281.5,49.5818]
[1625467182995,1.66666667,2281.8,2281.7,4.41054]
[1625467183347,1.66666667,2281.8,2281.7,20.235287]
[1625467184973,2.66666667,2281.8,2281.7,20.235287]
[1625467185172,1.66666667,2281.8,2281.7,20.235287]
[1625467185925,2.66666667,2281.8,2281.7,20.235287]
[1625467186774,1.66666667,2281.8,2281.7,20.235287]
[1625467190533,2.66666667,2281.8,2281.7,20.235287]
[1625467191140,2.66666667,2281.8,2280.3,0.8862]
[1625467191239,2.66666667,2281.8,2279.8,13.8287]
[1625467191841,2.66666667,2281.8,2279.9,15.80573]
[1625467191946,2.66666667,2281.8,2279.9,18.20923]
[1625467192143,2.66666667,2281.8,2279.9,23.20923]
[1625467192243,2.66666667,2281.8,2280.4,1.15]
[1625467192344,2.66666667,2281.8,2281.1,40.2065]
[1625467192643,2.66666667,2281.8,2281.2,15.961597]
[1625467193046,3.87193667,2281.8,2281.7,4.41054]
[1625467193250,4.87193667,2281.8,2281.7,4.41054]
[1625467194806,3.87193667,2281.8,2281.7,4.41054]
[1625467195105,1.66666667,2281.8,2281.7,4.41054]
[1625467195506,1.66666667,2281.8,2281.7,20.188174]
[1625467197726,6.667e-05,2281.8,2281.7,20.188174]
[1625467200836,6.667e-05,2281.8,2281.7,21.059574]
[1625467201136,6.667e-05,2281.8,2281.7,20.188174]
[1625467202308,6.667e-05,2281.8,2281.7,21.073774]
[1625467203140,6.667e-05,2281.8,2281.7,20.188174]
[1625467204294,6.667e-05,2281.8,2281.7,21.052574]
[1625467210323,6.667e-05,2281.8,2281.7,20.188174]
[1625467213883,6.667e-05,2281.8,2281.7,21.069374]
[1625467213983,6.667e-05,2281.8,2281.7,20.188174]
[1625467214988,6.667e-05,2281.8,2281.7,21.062374]
[1625467215188,6.667e-05,2281.8,2281.7,20.188174]
[1625467217142,6.667e-05,2281.8,2281.7,21.053074]
[1625467221051,6.667e-05,2281.8,2281.7,20.188174]
[1625467225462,6.667e-05,2281.8,2281.7,4.41054]
[1625467226372,6.667e-05,2281.8,2281.7,4e-05]
[1625467226472,6.667e-05,2281.8,2280.7,14.4963]
[1625467226673,6.667e-05,2281.8,2279.6,0.8869]
[1625467226772,6.667e-05,2281.8,2279.0,5.0]
[1625467227075,6.667e-05,2281.8,2279.3,0.1706613]
[1625467227173,6.667e-05,2281.8,2279.7,14.9117]
[1625467227274,2.20527,2280.5,2280.4,2.20527]
[1625467227374,6.54547,2280.5,2280.4,2.20527]
[1625467228127,5.54547,2280.5,2280.4,2.20527]
[1625467228533,5.54547,2280.5,2280.4,18.141099]
[1625467229183,3.3402,2280.5,2280.4,18.141099]
[1625467229284,2.20527,2280.8,2280.4,18.141099]
[1625467229585,1.0,2280.7,2280.4,18.141099]
[1625467231237,2.20527,2280.5,2280.4,18.141099]
[1625467231338,6.66167,2280.5,2280.4,18.141099]
[1625467231437,6.66167,2280.5,2280.4,15.935829]
[1625467232694,6.66167,2280.5,2279.7,14.9117]
[1625467233042,6.66167,2280.5,2278.4,4.86298237]
[1625467233144,6.66167,2280.5,2278.4,0.8767]
[1625467233244,2.20527,2279.7,2279.6,2.20527]
[1625467233646,3.20527,2279.7,2279.6,2.20527]
[1625467233946,3.20527,2279.7,2278.4,0.8767]
[1625467234046,3.20527,2279.7,2278.3,69.3799]
[1625467234146,3.20527,2279.7,2278.4,0.17120134]
[1625467234546,3.20527,2279.7,2278.5,15.833716]
[1625467234746,3.20527,2279.7,2278.6,0.17103422]
[1625467235149,3.20527,2279.7,2278.7,19.445335]
[1625467235247,3.20527,2279.7,2279.4,48.1958]
[1625467235350,3.20527,2279.7,2279.6,2.20527]
[1625467236157,3.20527,2279.7,2279.6,48.84867]
[1625467236505,3.20527,2279.7,2279.6,46.6434]
[1625467237359,3.20527,2279.7,2279.4,4.41054]
[1625467237558,6.09517,2279.7,2279.4,4.41054]
[1625467237857,6.09517,2279.7,2279.6,39.8919]
[1625467239310,6.09517,2279.7,2279.1,2.20527]
[1625467239969,6.09517,2279.7,2279.2,16.039843]
[1625467240463,3.20527,2279.7,2279.2,18.865543]
[1625467240865,3.20527,2279.7,2279.3,45.2035]
[1625467241214,3.20527,2279.7,2279.4,15.888751]
[1625467241315,3.20527,2279.7,2279.6,2.20527]
[1625467241718,3.20527,2279.7,2279.6,18.209126]
[1625467242367,3.20527,2279.7,2279.6,2.20527]
[1625467243828,3.20527,2279.7,2279.6,18.031519]
[1625467245890,3.20527,2279.7,2279.6,2.20527]
[1625467246292,2.20527,2279.7,2279.6,2.20527]
[1625467246591,2.20527,2279.7,2279.6,18.200562]
[1625467246794,1.0,2279.8,2279.6,18.200562]
[1625467247195,1.0,2279.8,2279.6,15.995292]
[1625467247297,4.41054,2279.7,2279.4,0.05]
[1625467247400,1.0,2279.6,2279.4,0.05]
[1625467248403,1.0,2279.6,2279.5,15.824924]
[1625467248605,4.41054,2279.7,2279.5,15.824924]
[1625467249056,1.0,2279.6,2279.5,15.824924]
[1625467251260,4.41054,2279.7,2279.5,15.824924]
[1625467251512,5.41054,2279.7,2279.5,15.824924]
[1625467253568,5.41054,2279.7,2279.5,18.646424]
[1625467254014,4.41054,2279.7,2279.5,18.646424]
[1625467254118,1.0,2280.2,2279.5,18.646424]
[1625467254319,14.0245,2280.4,2279.5,18.646424]
[1625467254518,4.759,2282.0,2279.5,18.646424]
[1625467254719,14.8555,2281.9,2279.5,18.646424]
[1625467254821,14.8555,2281.9,2279.5,23.646424]
[1625467255028,14.8555,2281.9,2280.0,1.15]
[1625467255120,14.8555,2281.9,2280.0,2.0278]
[1625467255219,1.00006667,2281.8,2280.0,5.4496]
[1625467255318,1.00006667,2281.8,2281.3,2.20527]
[1625467255421,2.20527,2281.4,2281.3,5.42817]
[1625467255521,2.20527,2281.4,2281.3,6.30577]
[1625467255629,2.20527,2281.4,2281.3,45.75037]
[1625467255720,2.20527,2281.4,2281.3,60.829326]
[1625467256672,3.20527,2281.4,2281.3,60.829326]
[1625467257373,5.41054,2281.4,2281.3,19.179456]
[1625467257482,8.19294,2281.4,2281.3,19.179456]
[1625467257577,8.19294,2281.4,2281.3,15.956556]
[1625467257924,8.19294,2281.4,2281.0,2.20527]
[1625467258424,8.19294,2281.4,2280.8,2.20527]
[1625467258527,8.19294,2281.4,2281.1,15.781306]
[1625467258726,8.19294,2281.4,2280.3,50.12]
[1625467259353,5.98767,2281.4,2281.1,2.20527]
[1625467259644,5.98767,2281.4,2281.2,16.015327]
[1625467260104,3.20527,2281.4,2281.2,16.015327]
[1625467260405,3.20527,2281.4,2280.8,2.20527]
[1625467261311,5.66777,2281.4,2280.8,2.20527]
[1625467261413,4.41054,2280.9,2280.8,2.20527]
[1625467261513,8.05344,2280.9,2280.8,2.20527]
[1625467262260,7.05344,2280.9,2280.8,2.20527]
[1625467262460,7.05344,2280.9,2280.8,18.176707]
[1625467262862,8.05344,2280.9,2280.8,18.176707]
[1625467263161,8.05344,2280.9,2280.8,2.20527]
[1625467263666,3.6429,2280.9,2280.8,2.20527]
[1625467263766,1.0,2280.9,2280.8,2.20527]
[1625467265519,1.0,2280.9,2280.8,18.190126]
[1625467266673,2.20527,2281.2,2280.8,18.190126]
[1625467266888,1.0,2281.1,2280.8,18.190126]
[1625467267474,1.0,2281.1,2281.0,2.20527]
[1625467267776,1.0,2281.1,2281.0,18.03409]
[1625467268275,1.0,2281.1,2281.0,15.82882]
[1625467268375,1.0,2281.1,2280.1,39.0619]
[1625467269177,1.0,2281.1,2280.2,15.901279]
[1625467269382,1.8639,2281.1,2280.2,15.901279]
[1625467269477,1.0,2281.1,2280.8,2.20527]
[1625467270481,1.0,2281.1,2280.9,15.881941]
[1625467270780,1.0,2281.1,2280.8,2.20527]
[1625467271446,2.20527,2280.9,2280.8,2.20527]
[1625467271544,3.20527,2280.9,2280.8,2.20527]
[1625467271694,3.20527,2280.9,2280.1,55.0534]
[1625467272397,3.20527,2280.9,2280.2,15.842254]
[1625467273249,3.20527,2280.9,2279.4,2.50917723]
[1625467273449,3.20527,2280.9,2280.4,2.20527]
[1625467273869,4.08587,2280.9,2280.4,2.20527]
[1625467273962,3.20527,2280.9,2280.4,2.20527]
[1625467275517,2.20527,2280.5,2280.4,2.20527]
[1625467275619,6.68657,2280.5,2280.4,2.20527]
[1625467278979,7.55257,2280.5,2280.4,2.20527]
[1625467279229,6.68657,2280.5,2280.4,2.20527]
[1625467280989,6.68657,2280.5,2279.3,14.8801]
[1625467281335,6.68657,2280.5,2278.6,2.51282997]
[1625467281541,2.20527,2279.7,2279.6,2.20527]
[1625467281936,2.20527,2279.7,2279.6,18.001875]
[1625467283499,4.41054,2279.7,2279.6,18.001875]
[1625467283951,5.41054,2279.7,2279.6,2.20527]
[1625467285253,5.41054,2279.7,2279.3,2.20527]
[1625467285557,2.20527,2279.4,2279.3,2.20527]
[1625467285654,3.20527,2279.4,2279.3,2.20527]
[1625467286504,3.20527,2279.4,2279.0,2.20527]
[1625467287305,3.20527,2279.4,2279.0,7e-05]
[1625467287407,3.20527,2279.4,2278.9,0.05]
[1625467287606,5.17077,2279.0,2278.9,0.05]
[1625467287707,6.17077,2279.0,2278.7,2.20527]
[1625467289421,6.17077,2279.0,2277.5,2.51709664]
[1625467289522,6.17077,2279.0,2277.6,0.16727854]
[1625467289622,2.20527,2278.3,2278.1,2.20527]
[1625467290072,2.20527,2278.3,2278.2,15.954522]
[1625467291074,2.20527,2278.3,2278.2,52.974622]
[1625467291575,4.41054,2278.3,2278.2,52.974622]
[1625467292674,3.37053912,2278.3,2278.2,52.974622]
[1625467293573,1.16526912,2278.3,2278.2,52.974622]
[1625467294979,2.03746912,2278.3,2278.2,52.974622]
[1625467295078,1.16526912,2278.3,2278.2,52.974622]
[1625467295729,1.16526912,2278.3,2278.2,15.954522]
[1625467296227,1.16526912,2278.3,2278.2,61.961322]
[1625467296677,1.16526912,2278.3,2278.2,15.954522]
[1625467298291,2.16526912,2278.3,2278.2,15.954522]
[1625467300384,1.16526912,2278.3,2278.2,15.954522]
[1625467305608,2.16526912,2278.3,2278.2,15.954522]
[1625467305709,2.16526912,2278.3,2278.1,2.20527]
[1625467306963,2.16526912,2278.3,2278.2,48.2015]
[1625467307365,2.16526912,2278.3,2278.1,2.20527]
[1625467307668,4.37053912,2278.3,2278.1,2.20527]
[1625467307766,4.37053912,2278.3,2277.9,2.20527]
[1625467307868,4.37053912,2278.3,2277.3,2.51900729]
[1625467307966,4.37053912,2278.3,2277.2,16.65720054]
[1625467308165,4.37053912,2278.3,2277.2,2.52100054]
[1625467308368,4.37053912,2278.3,2277.0,2.52221785]
[1625467308465,4.37053912,2278.3,2277.3,16.066133]
[1625467308767,4.37053912,2278.3,2277.1,15.997738]
[1625467309068,4.37053912,2278.3,2277.0,41.87731785]
[1625467309172,4.37053912,2278.3,2277.4,15.807377]
[1625467309420,4.37053912,2278.3,2277.1,15.996571]
[1625467309671,2.20527,2277.6,2277.5,18.13629]
[1625467309775,3.20527,2277.6,2277.5,18.13629]
[1625467309971,3.20527,2277.6,2277.5,2.20527]
[1625467310273,2.16505551,2277.6,2277.3,2.20527]
[1625467310375,2.16505551,2277.6,2277.5,15.974708]
[1625467310673,2.16505551,2277.6,2277.4,15.864068]
[1625467310873,2.16505551,2277.6,2277.3,2.20527]
[1625467310973,2.16505551,2277.6,2277.5,15.833048]
[1625467311274,2.16505551,2277.6,2277.4,15.817043]
[1625467311777,4.37032551,2277.6,2277.4,15.817043]
[1625467319291,4.37032551,2277.6,2277.4,19.003943]
[1625467320247,4.37032551,2277.6,2277.4,15.817043]
[1625467323613,4.37032551,2277.6,2277.3,4.41054]
[1625467325115,7.08872551,2277.6,2277.3,4.41054]
[1625467328624,7.08872551,2277.6,2276.3,1.76906444]
[1625467328724,7.08872551,2277.6,2276.2,2.52723492]
[1625467328725,7.08872551,2277.6,2276.2,1.77234189]
[1625467329175,7.08872551,2277.6,2276.3,15.838693]
[1625467329825,7.08872551,2277.6,2276.8,2.20527]
[1625467329925,2.20527,2276.9,2276.8,2.20527]
[1625467330025,3.20527,2276.9,2276.8,2.20527]
[1625467331879,5.41054,2276.9,2276.8,2.20527]
[1625467333133,5.41054,2276.9,2276.8,44.83987]
[1625467333433,4.41054,2276.9,2276.8,44.83987]
[1625467334092,4.41054,2276.9,2276.8,2.20527]
[1625467334440,3.36996122,2276.9,2276.8,2.20527]
[1625467335499,4.36996122,2276.9,2276.8,2.20527]
[1625467335795,4.36996122,2276.9,2276.8,39.64597]
[1625467336093,4.36996122,2276.9,2276.8,2.20527]
[1625467336193,7.33916122,2276.9,2276.8,2.20527]
[1625467337044,6.33916122,2276.9,2276.8,2.20527]
[1625467340398,6.33916122,2276.9,2276.8,41.96127]
[1625467340499,1.0,2277.2,2276.8,41.96127]
[1625467340598,5.0,2279.3,2276.8,41.96127]
[1625467340700,1.0,2278.7,2276.8,41.96127]
[1625467340900,1.0,2278.7,2276.9,15.996215]
[1625467341750,1.0,2278.7,2276.9,16.874415]
[1625467341963,2.20527,2277.5,2277.4,2.20527]
[1625467342060,3.20527,2277.5,2277.4,2.20527]
[1625467342313,3.20527,2277.5,2277.4,18.131195]
[1625467342711,2.20527,2277.5,2277.4,18.131195]
[1625467343915,4.41054,2277.5,2277.4,18.131195]
[1625467344415,5.41054,2277.5,2277.4,18.131195]
[1625467346119,5.41054,2277.5,2277.4,2.20527]
[1625467346420,5.41054,2277.5,2276.8,2.20527]
[1625467347023,5.41054,2277.5,2276.9,15.970971]
[1625467347923,2.20527,2277.0,2276.9,15.970971]
[1625467348023,3.20527,2277.0,2276.9,70.324371]
[1625467348123,3.20527,2277.0,2276.9,15.970971]
[1625467348424,3.20527,2277.0,2276.8,2.20527]
[1625467349727,6.07927,2277.0,2276.8,2.20527]
[1625467349929,8.28454,2277.0,2276.8,2.20527]
[1625467351332,8.28454,2277.0,2276.8,47.35047]
[1625467352632,8.28454,2277.0,2276.8,2.20527]
[1625467353383,8.28454,2277.0,2276.8,52.83477]
[1625467354487,8.28454,2277.0,2276.8,2.20527]
[1625467355189,8.28454,2277.0,2276.8,52.26867]
[1625467356341,8.28454,2277.0,2276.8,2.20527]
[1625467360770,8.28454,2277.0,2276.9,51.1517]
[1625467361071,1.0,2277.0,2276.9,53.3791]
[1625467361171,1.0,2278.1,2276.9,53.3791]
[1625467361371,1.0,2278.1,2276.9,69.388287]
[1625467362075,2.20527,2277.3,2277.2,2.20527]
[1625467362173,3.20527,2277.3,2277.2,2.20527]
[1625467362424,3.20527,2277.3,2277.2,18.188111]
[1625467363228,2.20527,2277.3,2277.2,18.188111]
[1625467363427,3.20527,2277.3,2277.2,18.188111]
[1625467363626,2.20527,2277.3,2277.2,18.188111]
[1625467365832,3.20527,2277.3,2277.2,18.188111]
[1625467366592,2.20527,2277.3,2277.2,18.188111]
[1625467372622,1.0,2277.5,2277.2,18.188111]
[1625467372723,1.0,2278.1,2277.2,18.188111]
[1625467374124,2.20527,2277.7,2277.6,2.20527]
[1625467374225,3.20527,2277.7,2277.6,2.20527]
[1625467374776,3.20527,2277.7,2277.1,1.78486691]
[1625467375281,58.05587,2277.7,2277.1,1.78486691]
[1625467375384,58.05587,2277.7,2276.8,1.78623549]
[1625467376181,2.20527,2277.2,2277.1,2.20527]
[1625467376283,3.20527,2277.2,2277.1,2.20527]
[1625467377785,3.20527,2277.2,2277.1,45.32047]
[1625467378085,2.20527,2277.2,2277.1,61.229867]
[1625467378484,2.20527,2277.2,2277.1,18.114667]
[1625467378588,1.0,2277.5,2277.1,18.114667]
[1625467378685,1.0,2277.5,2277.1,21.562867]
[1625467380159,1.0,2277.5,2277.4,2.20527]
[1625467381177,14.782,2278.2,2277.4,2.20527]
[1625467381286,1.0,2278.1,2277.4,2.20527]
[1625467381374,2.58507487,2279.2,2277.4,2.20527]
[1625467381653,3.3612949,2279.4,2277.5,16.035254]
[1625467381654,1.76018685,2279.4,2277.5,16.035254]
[1625467381853,1.76018685,2279.4,2279.1,42.9978]
[1625467382153,3.96545685,2279.4,2279.3,2.20527]
[1625467382253,4.96545685,2279.4,2279.3,2.20527]
[1625467382354,3.20527,2279.4,2279.3,2.20527]
[1625467382670,2.20527,2279.4,2279.3,2.20527]
[1625467383674,2.16537,2279.4,2279.3,2.20527]
[1625467383924,2.16537,2279.4,2279.3,18.076739]
[1625467384225,3.20527,2279.9,2279.3,18.076739]
[1625467386181,3.20527,2279.9,2279.8,4.41054]
[1625467386983,3.20527,2279.9,2279.8,58.92054]
[1625467387232,3.20527,2279.9,2279.8,4.41054]
[1625467388237,3.20527,2279.9,2279.1,39.767]
[1625467388837,3.20527,2279.9,2279.2,15.935879]
[1625467390189,3.20527,2279.9,2279.7,2.20527]
[1625467391192,41.7873,2279.8,2279.7,2.20527]
[1625467391293,45.6735,2279.8,2279.7,2.20527]
[1625467391496,45.6735,2279.8,2279.1,0.05]
[1625467391592,45.6735,2279.8,2278.3,1.27295736]
[1625467391994,45.6735,2279.8,2278.2,1.27324802]
[1625467392242,2.20527,2279.0,2278.2,1.27324802]
[1625467392343,1.0,2278.9,2278.2,1.27324802]
[1625467392446,1.0,2278.9,2277.9,1.274422]
[1625467393195,1.0,2278.9,2278.0,15.938887]
[1625467393602,1.0,2278.9,2277.7,1.32569192]
[1625467393603,1.0,2278.9,2277.8,16.013667]
[1625467393700,1.0,2278.9,2277.8,17.28905279]
[1625467394301,1.0,2278.9,2278.5,2.20527]
[1625467396274,2.20527,2278.6,2278.5,2.20527]
[1625467396375,3.20527,2278.6,2278.5,2.20527]
[1625467400435,2.20527,2279.0,2278.5,2.20527]
[1625467400534,3.20527,2279.0,2278.5,4.47017]
[1625467400784,2.20527,2279.0,2278.5,4.47017]
[1625467400885,2.20527,2279.0,2278.6,15.998764]
[1625467401836,3.20527,2279.0,2278.6,15.998764]
[1625467402288,3.20527,2279.0,2278.8,2.20527]
[1625467405494,2.20527,2279.0,2278.8,4.61397]
[1625467405843,2.20527,2279.0,2278.9,54.9604]
[1625467405943,2.20527,2279.0,2278.9,70.854986]
[1625467407498,2.20527,2279.0,2278.9,15.894586]
[1625467412313,2.20527,2279.0,2278.9,18.099856]
[1625467415521,5.54807,2279.0,2278.9,15.894586]
[1625467415629,5.54807,2279.0,2278.7,0.05]
[1625467416032,42.1029,2278.8,2277.8,1.27421455]
[1625467416131,1.0,2278.7,2277.8,1.27421455]
[1625467416335,1.0,2278.7,2278.5,2.20527]
[1625467418338,2.20527,2278.6,2278.5,2.20527]
[1625467418438,3.20527,2278.6,2278.5,2.20527]
[1625467421146,2.20527,2278.6,2278.5,2.20527]
[1625467422446,2.20527,2278.6,2278.5,18.180155]
[1625467427608,6.56427,2279.0,2278.5,18.180155]
[1625467427709,3.20527,2279.0,2278.5,20.496555]
[1625467427809,2.20527,2279.0,2278.5,20.496555]
[1625467428366,2.20527,2279.0,2278.9,2.20527]
[1625467428515,2.20527,2279.0,2278.9,48.81577]
[1625467431021,2.20527,2279.0,2278.9,64.827346]
[1625467431674,14.0945,2280.0,2278.9,64.827346]
[1625467431773,1.0,2279.7,2278.9,64.827346]
[1625467432422,1.0,2279.7,2279.6,2.20527]
[1625467432522,1.0,2279.7,2279.6,5.31647]
[1625467433693,1.0,2279.7,2279.6,46.34327]
[1625467433799,1.0,2279.7,2279.6,5.31647]
[1625467434847,2.20527,2279.8,2279.6,5.31647]
[1625467435348,2.20527,2279.8,2279.6,54.22547]
[1625467435448,3.20527,2279.8,2279.6,54.22547]
[1625467435652,3.20527,2279.8,2279.6,5.31647]
[1625467436150,3.20527,2279.8,2279.6,54.22327]
[1625467437553,3.20527,2279.8,2279.6,5.31647]
[1625467438357,3.20527,2279.8,2279.6,60.15087]
[1625467438808,3.20527,2279.8,2279.6,5.31647]
[1625467444532,3.20527,2279.8,2279.6,3.1112]
[1625467444635,3.20527,2279.8,2279.1,2.4524]
[1625467444736,3.20527,2279.8,2278.9,46.6105]
[1625467444882,3.20527,2279.8,2278.0,3.3146076]
[1625467444983,6.17267,2279.8,2277.9,3.31471964]
[1625467445286,6.17267,2279.8,2278.3,1.27623942]
[1625467446035,10.93167,2279.8,2278.4,15.987094]
[1625467446488,2.20527,2278.9,2278.8,2.20527]
[1625467448497,4.41054,2278.9,2278.8,2.20527]
[1625467448899,4.41054,2278.9,2278.8,56.45017]
[1625467449701,4.41054,2278.9,2278.8,2.20527]
[1625467449801,1.0,2279.5,2278.8,2.20527]
[1625467450152,1.0,2279.5,2278.9,15.903307]
[1625467450551,2.20527,2279.3,2279.2,2.20527]
[1625467453619,2.20527,2279.3,2279.2,18.247845]
[1625467454228,1.0,2280.1,2279.2,18.247845]
[1625467454328,1.0,2280.1,2279.2,21.373845]
[1625467454528,1.0,2280.1,2280.0,4.41054]
[1625467454529,3.20527,2280.1,2280.0,4.41054]
[1625467454628,3.20527,2280.1,2280.0,6.81454]
[1625467454979,2.20527,2280.1,2280.0,6.81454]
[1625467455190,2.20527,2280.1,2280.0,51.63354]
[1625467455886,2.20527,2280.1,2280.0,67.615865]
[1625467456547,4.759,2281.1,2280.0,67.615865]
[1625467456747,1.29206744,2281.4,2280.0,67.615865]
[1625467457300,1.0,2281.2,2280.0,67.615865]
[1625467457501,1.0,2281.2,2280.8,55.7587]
[1625467458505,2.20527,2281.0,2280.9,2.20527]
[1625467458604,3.20527,2281.0,2280.9,2.20527]
[1625467460510,5.41054,2281.0,2280.9,2.20527]
[1625467463714,5.41054,2281.0,2280.9,53.93607]
[1625467463815,5.41054,2281.0,2280.9,56.16677]
[1625467464267,5.41054,2281.0,2280.9,72.111971]
[1625467465369,4.41054,2281.0,2280.9,72.111971]
[1625467466569,2.20527,2281.0,2280.9,72.111971]
[1625467471501,2.20527,2281.0,2280.9,20.381171]
[1625467471601,3.20527,2281.0,2280.9,18.150471]
[1625467471705,3.20527,2281.0,2280.9,2.20527]
[1625467472756,3.20527,2281.0,2280.9,5.70927]
[1625467472757,2.20527,2281.0,2280.9,5.70927]
[1625467473208,2.20527,2281.0,2280.9,58.69317]
[1625467473309,2.20527,2281.0,2280.9,74.595526]
[1625467476767,3.20527,2281.4,2280.9,74.595526]
[1625467476965,2.20527,2281.4,2280.9,74.595526]
[1625467477519,1.0,2281.7,2280.9,74.595526]
[1625467477917,6.667e-05,2281.8,2280.9,74.595526]
[1625467478669,6.667e-05,2281.8,2281.7,6.81424]
[1625467479018,6.667e-05,2281.8,2281.7,56.55934]
[1625467479770,6.667e-05,2281.8,2281.7,6.81424]
[1625467479870,6.667e-05,2281.8,2281.7,4.41054]
[1625467483636,6.667e-05,2281.8,2279.9,1.27665018]
[1625467483728,3.09056667,2281.8,2279.9,1.27665018]
[1625467483828,1.0,2281.7,2279.9,1.27665018]
[1625467483929,1.0,2281.7,2279.8,15.53359267]
[1625467484600,1.0,2281.7,2280.2,15.902668]
[1625467484709,2.20527,2281.3,2281.2,2.20527]
[1625467484792,6.12987,2281.3,2281.2,2.20527]
[1625467486699,8.33514,2281.3,2281.2,2.20527]
[1625467489449,7.33514,2281.3,2281.2,2.20527]
[1625467493161,8.33514,2281.3,2281.2,2.20527]
[1625467493814,7.33514,2281.3,2281.2,2.20527]
[1625467494365,5.12987,2281.3,2281.2,2.20527]
[1625467497474,2.9246,2281.3,2281.2,2.20527]
[1625467497575,6.667e-05,2281.8,2281.2,2.20527]
[1625467497975,6.667e-05,2281.8,2281.3,15.80992]
[1625467498476,6.667e-05,2281.8,2281.6,52.311]
[1625467498575,6.667e-05,2281.8,2281.6,55.4005]
[1625467498777,6.667e-05,2281.8,2281.7,20.413623]
[1625467500786,6.667e-05,2281.8,2281.7,4.41054]
[1625467501586,6.667e-05,2281.8,2281.7,2.20527]
[1625467503388,6.667e-05,2281.8,2281.7,4.95407]
[1625467503690,6.667e-05,2281.8,2281.7,20.952015]
[1625467507644,6.667e-05,2281.8,2281.7,59.973615]
[1625467512869,6.667e-05,2281.8,2281.7,60.845715]
[1625467514173,6.667e-05,2281.8,2281.7,59.973615]
[1625467516174,2.11103667,2282.1,2281.7,59.973615]
[1625467516779,2.11103667,2282.1,2281.7,60.839615]
[1625467516878,2.11103667,2282.1,2282.0,2.20527]
[1625467517179,2.11103667,2282.1,2282.0,17.996248]
[1625467520484,2.11103667,2282.1,2282.0,2.20527]
[1625467520993,3.11103667,2282.1,2282.0,2.20527]
[1625467521185,3.11103667,2282.1,2281.7,2.20527]
[1625467521285,3.11103667,2282.1,2281.6,0.05]
[1625467521387,6.53773667,2282.1,2281.6,0.05]
[1625467521637,6.53773667,2282.1,2280.7,15.85563541]
[1625467521838,6.53773667,2282.1,2280.7,14.5816]
[1625467522238,6.53773667,2282.1,2280.8,15.819205]
[1625467522541,6.53773667,2282.1,2281.0,37.9082]
[1625467522741,6.53773667,2282.1,2281.0,0.8725]
[1625467522891,6.53773667,2282.1,2281.1,15.81183]
[1625467522992,6.53773667,2282.1,2281.6,2.20527]
[1625467525000,2.20527,2281.7,2281.6,2.20527]
[1625467525098,3.20527,2281.7,2281.6,2.20527]
[1625467526803,1.0,2281.9,2281.6,2.20527]
[1625467527002,2.11103667,2282.1,2281.8,2.20527]
[1625467527353,2.11103667,2282.1,2281.9,15.817173]
[1625467527603,2.11103667,2282.1,2282.0,50.7487]
[1625467527855,2.11103667,2282.1,2282.0,66.597123]
[1625467528156,2.11103667,2282.1,2282.0,15.848423]
[1625467528267,3.11103667,2282.1,2282.0,15.848423]
[1625467528665,3.11103667,2282.1,2281.6,2.20527]
[1625467528764,5.87463667,2282.1,2281.6,2.20527]
[1625467528963,2.20527,2281.8,2281.6,2.20527]
[1625467529519,2.20527,2281.8,2281.7,49.918]
[1625467529619,3.20527,2281.8,2281.7,49.918]
[1625467530623,2.20527,2281.8,2281.7,49.918]
[1625467531124,2.20527,2281.8,2281.7,65.753095]
[1625467531934,2.20527,2281.8,2281.7,15.835095]
[1625467534994,2.20527,2281.8,2281.7,18.040365]
[1625467535097,2.20527,2281.8,2281.7,2.20527]
[1625467535295,3.20527,2281.8,2281.7,2.20527]
[1625467537408,2.20527,2281.8,2281.7,2.20527]
[1625467540312,2.20527,2281.8,2281.7,5.26557]
[1625467542577,3.20527,2281.8,2281.7,5.26557]
[1625467545790,3.20527,2281.8,2281.7,2.20527]
[1625467546093,3.20527,2281.8,2281.1,1.28382128]
[1625467546440,3.20527,2281.8,2280.9,2.56764256]
[1625467546441,44.32927,2281.8,2281.0,1.28431004]
[1625467546744,3.20527,2281.8,2281.0,1.28431004]
[1625467546842,3.20527,2281.8,2280.9,1.28448877]
[1625467547043,4.41054,2281.0,2280.9,3.48975877]
[1625467547141,5.41054,2281.0,2280.9,3.48975877]
[1625467547546,5.41054,2281.0,2280.9,19.44036977]
[1625467548047,5.41054,2281.0,2280.9,18.155881]
[1625467548498,5.41054,2281.0,2280.9,19.44110329]
[1625467549504,5.41054,2281.0,2280.9,3.49049229]
[1625467549603,5.41054,2281.0,2280.9,1.28522229]
[1625467550206,5.41054,2281.0,2280.5,1.28672098]
[1625467550657,5.41054,2281.0,2280.4,1.28688037]
[1625467551058,5.41054,2281.0,2280.5,1.28698804]
[1625467551158,1.0,2281.0,2280.5,1.28698804]